bitfinex-derivatives/quotes_BTCF0:USTF0_20240814
["timestamp","ask_amount","ask_price","bid_price","bid_amount"]
[1723614198513,0.758444,60933.0,60932.0,0.05544421]
[1723614198916,0.114846,60932.0,60930.0,0.00018891]
[1723614199109,0.08190304,60931.0,60930.0,0.00018891]
[1723614199310,0.19190304,60931.0,60930.0,0.00018891]
[1723614200115,0.338348,60931.0,60930.0,0.00318891]
[1723614200922,0.34814899,60931.0,60930.0,0.00318891]
[1723614201311,0.34914899,60931.0,60930.0,0.00318891]
[1723614202012,0.70994899,60931.0,60930.0,0.00318891]
[1723614209920,0.34914899,60931.0,60930.0,0.00318891]
[1723614210220,0.70994899,60931.0,60930.0,0.00318891]
[1723614212818,1.25973299,60931.0,60930.0,9.1e-07]
[1723614213011,1.61217682,60931.0,60914.0,0.01012734]
[1723614213216,1.61217682,60931.0,60912.0,0.06559337]
[1723614213217,0.057441,60913.0,60912.0,0.06559337]
[1723614213411,0.1135,60913.0,60911.0,0.06559337]
[1723614213722,0.1135,60913.0,60910.0,0.11239337]
[1723614213923,0.00013749,60912.0,60910.0,0.11239337]
[1723614214112,0.05757949,60912.0,60910.0,0.11239337]
[1723614215819,0.05857949,60912.0,60910.0,0.11639337]
[1723614216620,0.05857949,60912.0,60910.0,0.0508]
[1723614216814,0.00113749,60912.0,60910.0,0.0508]
[1723614217014,0.057443,60911.0,60910.0,0.0508]
[1723614217526,0.057443,60911.0,60910.0,0.0578]
[1723614219222,0.057443,60911.0,60910.0,0.0545863]
[1723614219423,0.058443,60911.0,60910.0,0.0575863]
[1723614220221,0.058443,60911.0,60910.0,0.0535863]
[1723614220524,0.059443,60911.0,60910.0,0.0575863]
[1723614220922,0.420243,60911.0,60910.0,0.0575863]
[1723614221922,0.533743,60911.0,60910.0,0.0575863]
[1723614222916,0.643743,60911.0,60910.0,0.0575863]
[1723614227831,0.282943,60911.0,60910.0,0.0575863]
[1723614228025,0.643743,60911.0,60910.0,0.0575863]
[1723614229628,0.282943,60911.0,60910.0,0.0575863]
[1723614229828,0.643743,60911.0,60910.0,0.0575863]
[1723614231820,0.282943,60911.0,60910.0,0.0575863]
[1723614232226,0.643743,60911.0,60910.0,0.0575863]
[1723614233031,0.282943,60911.0,60910.0,0.0575863]
[1723614233226,0.643743,60911.0,60910.0,0.0575863]
[1723614234035,0.282943,60911.0,60910.0,0.0575863]
[1723614234230,0.643743,60911.0,60910.0,0.0575863]
[1723614237431,0.282943,60911.0,60910.0,0.0575863]
[1723614237630,0.643743,60911.0,60910.0,0.0575863]
[1723614238243,0.530243,60911.0,60910.0,0.0575863]
[1723614238628,0.643743,60911.0,60910.0,0.0575863]
[1723614240643,0.643743,60911.0,60910.0,0.014]
[1723614240837,0.70915457,60911.0,60910.0,0.014]
[1723614241347,0.643743,60911.0,60910.0,0.014]
[1723614243341,0.643743,60911.0,60910.0,0.07959337]
[1723614244032,0.282943,60911.0,60910.0,0.07959337]
[1723614244236,0.643743,60911.0,60910.0,0.07959337]
[1723614245448,0.643743,60911.0,60910.0,0.014]
[1723614246139,0.530243,60911.0,60910.0,0.014]
[1723614246462,0.643743,60911.0,60910.0,0.014]
[1723614248147,0.643743,60911.0,60910.0,0.071444]
[1723614248148,0.112,60911.0,60910.0,0.071444]
[1723614248336,0.0655783,60916.0,60911.0,0.49252]
[1723614248540,0.06582452,60919.0,60916.0,0.057438]
[1723614248748,0.12326125,60919.0,60918.0,0.08207227]
[1723614248938,0.05768122,60919.0,60918.0,0.20710542]
[1723614249139,0.05768122,60919.0,60918.0,0.12503315]
[1723614249340,0.41856237,60919.0,60918.0,0.12503315]
[1723614249548,0.00032737,60919.0,60917.0,0.0487]
[1723614249750,0.00032737,60919.0,60917.0,0.13077165]
[1723614249751,0.23650667,60918.0,60917.0,0.13077165]
[1723614250256,0.170936,60918.0,60917.0,0.17372144]
[1723614251449,0.23650667,60918.0,60917.0,0.26554654]
[1723614251847,0.170936,60918.0,60917.0,0.26554654]
[1723614252041,0.170936,60918.0,60917.0,0.27654654]
[1723614252042,0.171936,60918.0,60917.0,0.27654654]
[1723614252443,0.23750667,60918.0,60917.0,0.1515251]
[1723614252740,0.23850667,60918.0,60917.0,0.1575251]
[1723614253252,0.172936,60918.0,60917.0,0.282546]
[1723614253643,0.23850667,60918.0,60917.0,0.282546]
[1723614253844,0.172936,60918.0,60917.0,0.19072096]
[1723614254147,0.172936,60918.0,60917.0,0.0657]
[1723614254348,0.172936,60918.0,60917.0,0.017]
[1723614254543,0.23850667,60918.0,60917.0,0.017]
[1723614254846,0.292936,60918.0,60917.0,0.017]
[1723614257241,0.30295045,60918.0,60917.0,0.017]
[1723614258343,0.36843098,60918.0,60917.0,0.017]
[1723614259945,0.30295045,60918.0,60917.0,0.017]
[1723614260855,0.292936,60918.0,60917.0,0.017]
[1723614262357,0.653736,60918.0,60917.0,0.017]
[1723614262859,0.540236,60918.0,60917.0,0.017]
[1723614263642,0.653736,60918.0,60917.0,0.017]
[1723614264452,0.71921653,60918.0,60917.0,0.017]
[1723614264859,0.71921653,60918.0,60917.0,0.02709611]
[1723614269059,0.35841653,60918.0,60917.0,0.02709611]
[1723614269262,0.71921653,60918.0,60917.0,0.02709611]
[1723614269561,0.35841653,60918.0,60917.0,0.02709611]
[1723614269754,0.71921653,60918.0,60917.0,0.02709611]
[1723614269954,0.7191843,60918.0,60917.0,0.02709611]
[1723614270158,0.653736,60918.0,60917.0,0.09269896]
[1723614270352,0.653736,60918.0,60917.0,0.08260285]
[1723614274262,0.71921837,60918.0,60917.0,0.08259328]
[1723614275162,0.540236,60918.0,60917.0,0.08259328]
[1723614275362,0.653736,60918.0,60917.0,0.08259328]
[1723614275659,0.71922835,60918.0,60917.0,0.08259328]
[1723614276054,0.292936,60918.0,60917.0,0.017]
[1723614276361,0.653736,60918.0,60917.0,0.08261433]
[1723614277264,0.653736,60918.0,60917.0,0.017]
[1723614277756,0.292936,60918.0,60917.0,0.017]
[1723614277964,0.24495938,60918.0,60917.0,0.017]
[1723614278162,0.292936,60918.0,60917.0,0.017]
[1723614278850,0.292936,60918.0,60917.0,0.074437]
[1723614281062,0.122,60918.0,60917.0,0.566917]
[1723614281267,0.002,60918.0,60917.0,0.69193064]
[1723614281764,0.002,60918.0,60917.0,0.79020417]
[1723614282158,0.002,60918.0,60917.0,0.69193064]
[1723614283762,0.002,60918.0,60917.0,0.566917]
[1723614283966,0.002,60918.0,60917.0,0.69192256]
[1723614286563,0.002,60918.0,60917.0,0.19944256]
[1723614288674,0.002,60918.0,60917.0,0.56024256]
[1723614290275,0.06552338,60931.0,60917.0,1.45272256]
[1723614290574,0.1135,60931.0,60929.0,0.057425]
[1723614291582,0.1145,60931.0,60929.0,0.057425]
[1723614292083,0.1155,60931.0,60929.0,0.062425]
[1723614292592,0.1135,60930.0,60929.0,0.062425]
[1723614293490,0.1135,60930.0,60929.0,0.063425]
[1723614293883,0.1135,60930.0,60929.0,0.058425]
[1723614294786,0.1145,60930.0,60929.0,0.063425]
[1723614300401,0.001,60930.0,60929.0,0.063425]
[1723614300703,0.001,60930.0,60929.0,0.12893726]
[1723614300903,0.001,60930.0,60929.0,0.063425]
[1723614301204,0.1145,60930.0,60929.0,0.063425]
[1723614306600,0.001,60930.0,60929.0,0.063425]
[1723614308201,0.171925,60930.0,60929.0,0.063425]
[1723614308898,0.1145,60930.0,60929.0,0.063425]
[1723614309099,0.171925,60930.0,60929.0,0.006]
[1723614309298,0.171925,60930.0,60929.0,0.07153202]
[1723614309706,0.171925,60930.0,60929.0,0.006]
[1723614310693,0.271925,60930.0,60929.0,0.006]
[1723614317201,0.271925,60930.0,60926.0,0.01001655]
[1723614317202,0.057426,60929.0,60926.0,0.08189033]
[1723614317516,0.057426,60929.0,60924.0,0.06583404]
[1723614317517,0.53982583,60927.0,60924.0,0.06583404]
[1723614317703,0.057429,60925.0,60924.0,0.00024622]
[1723614317903,0.167429,60925.0,60924.0,0.00024622]
[1723614318100,0.23295483,60925.0,60924.0,0.00024622]
[1723614318298,0.167429,60925.0,60924.0,0.06583404]
[1723614318507,0.167429,60925.0,60924.0,0.00024622]
[1723614319106,0.167429,60925.0,60924.0,0.04942692]
[1723614319107,0.23295483,60925.0,60924.0,0.04942692]
[1723614319514,0.23295483,60925.0,60924.0,0.00024622]
[1723614319714,0.167429,60925.0,60924.0,0.00024622]
[1723614320515,0.167429,60925.0,60924.0,0.04941207]
[1723614320712,0.168429,60925.0,60924.0,0.00224622]
[1723614320906,0.169429,60925.0,60924.0,0.00824622]
[1723614324003,0.002,60925.0,60924.0,0.00824622]
[1723614324207,0.002,60925.0,60924.0,0.07383404]
[1723614324511,0.002,60925.0,60924.0,0.13126404]
[1723614324819,0.002,60925.0,60924.0,0.06567622]
[1723614325715,0.002,60925.0,60924.0,0.60497622]
[1723614327118,0.002,60925.0,60924.0,0.81186199]
[1723614328607,0.002,60925.0,60924.0,0.31946199]
[1723614328813,0.002,60925.0,60924.0,0.31946145]
[1723614330022,0.002,60925.0,60924.0,0.18819617]
[1723614331410,0.002,60925.0,60924.0,0.54899617]
[1723614333215,0.002,60925.0,60924.0,0.50209617]
[1723614333918,0.002,60925.0,60924.0,0.43656766]
[1723614334127,0.002,60925.0,60924.0,0.61559617]
[1723614334624,0.002,60925.0,60924.0,0.55006766]
[1723614335916,0.002,60925.0,60924.0,0.43656766]
[1723614336420,0.1155,60925.0,60924.0,0.43656766]
[1723614337031,0.1155,60925.0,60924.0,0.56156265]
[1723614337321,0.1155,60925.0,60924.0,0.43656766]
[1723614337526,0.1155,60925.0,60924.0,0.51850368]
[1723614337823,0.1155,60925.0,60924.0,0.43656766]
[1723614338028,0.172929,60925.0,60924.0,0.01833766]
[1723614338224,0.172929,60925.0,60924.0,0.00824622]
[1723614338921,0.172929,60925.0,60924.0,0.07380158]
[1723614339119,1.24907168,60925.0,60924.0,0.00824622]
[1723614339422,1.183558,60925.0,60924.0,0.00824622]
[1723614339625,0.057436,60918.0,60917.0,0.04916309]
[1723614339822,0.68725923,60918.0,60917.0,0.04916309]
[1723614340028,0.057437,60917.0,60916.0,0.04916309]
[1723614340213,0.2429591,60917.0,60916.0,0.04916309]
[1723614340418,0.057438,60916.0,60915.0,0.04916309]
[1723614341422,0.3618,60918.0,60915.0,0.04913205]
[1723614341627,0.419236,60918.0,60917.0,0.04913205]
[1723614341927,0.418236,60918.0,60917.0,0.04913205]
[1723614342527,0.057437,60917.0,60916.0,0.04913205]
[1723614345019,0.0671943,60917.0,60916.0,0.04913205]
[1723614345435,0.057437,60917.0,60916.0,0.04913205]
[1723614345928,0.058437,60917.0,60916.0,0.04913205]
[1723614346118,0.058437,60917.0,60912.0,0.06555536]
[1723614346119,0.058437,60917.0,60913.0,0.06555536]
[1723614346931,0.057438,60916.0,60913.0,0.06555536]
[1723614347432,0.057438,60916.0,60912.0,0.12299636]
[1723614348230,0.058438,60916.0,60913.0,0.005]
[1723614349727,0.058438,60916.0,60913.0,0.07055536]
[1723614350027,0.002,60916.0,60913.0,0.07055536]
[1723614350328,0.002,60916.0,60913.0,0.06555536]
[1723614350718,0.003,60916.0,60913.0,0.07055536]
[1723614350922,0.060439,60916.0,60913.0,0.07055536]
[1723614353423,0.060439,60916.0,60915.0,0.0490861]
[1723614353623,0.060439,60916.0,60913.0,0.005]
[1723614354024,0.05744,60915.0,60913.0,0.005]
[1723614354833,0.05744,60914.0,60913.0,0.005]
[1723614355046,0.58574,60914.0,60913.0,0.005]
[1723614355327,0.5283,60914.0,60908.0,0.04908582]
[1723614355532,0.057445,60908.0,60905.0,0.06555536]
[1723614356834,0.058445,60908.0,60905.0,0.06555536]
[1723614357129,0.057447,60906.0,60905.0,0.06555536]
[1723614357530,0.001,60908.0,60904.0,0.04907686]
[1723614358233,0.05745,60903.0,60902.0,0.04907686]
[1723614358433,0.05745,60903.0,60899.0,0.06555536]
[1723614358434,0.057451,60902.0,60901.0,0.04907686]
[1723614358638,0.057451,60902.0,60900.0,0.04907686]
[1723614359033,0.3608,60906.0,60900.0,0.04907686]
[1723614359034,0.057452,60901.0,60900.0,0.04907686]
[1723614359539,0.057453,60900.0,60899.0,0.04907686]
[1723614359842,0.057453,60900.0,60899.0,0.10653086]
[1723614360531,0.057453,60900.0,60899.0,0.04907686]
[1723614361535,0.057453,60900.0,60898.0,0.00996659]
[1723614361536,0.057454,60899.0,60898.0,0.00996659]
[1723614361736,0.057454,60899.0,60896.0,0.42635536]
[1723614362040,0.057454,60899.0,60897.0,0.06555536]
[1723614362239,0.057454,60899.0,60896.0,0.42635536]
[1723614363142,0.057454,60899.0,60896.0,0.4363028]
[1723614363731,0.057454,60899.0,60896.0,0.37074744]
[1723614363732,0.057456,60897.0,60896.0,0.37074744]
[1723614365541,0.057456,60897.0,60896.0,0.43616966]
[1723614366439,0.057456,60897.0,60896.0,0.43716966]
[1723614367441,0.057456,60897.0,60896.0,0.43616966]
[1723614367649,0.057456,60897.0,60896.0,0.37074744]
[1723614367949,0.058456,60897.0,60896.0,0.37174744]
[1723614370936,0.001,60897.0,60896.0,0.37174744]
[1723614371350,0.001,60897.0,60896.0,0.42920444]
[1723614372140,0.001,60897.0,60896.0,1.40378046]
[1723614372449,0.001,60897.0,60896.0,1.44689743]
[1723614373245,0.001,60897.0,60896.0,1.44689553]
[1723614373547,0.001,60897.0,60896.0,1.52873618]
[1723614375444,0.001,60897.0,60896.0,1.44689553]
[1723614375755,0.00024622,60908.0,60907.0,0.057446]
[1723614376043,0.01024622,60908.0,60907.0,0.106552]
[1723614376250,0.01024622,60908.0,60907.0,0.057446]
[1723614376446,0.01024622,60908.0,60907.0,0.103746]
[1723614377336,0.01124622,60908.0,60907.0,0.103746]
[1723614377949,0.01124622,60908.0,60907.0,0.105746]
[1723614378145,0.01224622,60908.0,60907.0,0.105746]
[1723614379352,0.01224622,60908.0,60907.0,0.11556745]
[1723614380343,0.01224622,60908.0,60907.0,0.18104211]
[1723614381242,0.01224622,60908.0,60907.0,0.11556745]
[1723614383351,0.01224622,60908.0,60907.0,0.105746]
[1723614386454,0.01224622,60908.0,60907.0,0.17131107]
[1723614386757,0.06969122,60908.0,60907.0,0.17131521]
[1723614386959,0.06969122,60908.0,60907.0,0.06756921]
[1723614387255,0.96225122,60908.0,60907.0,0.05117866]
[1723614387448,0.56225122,60908.0,60907.0,0.002]
[1723614387847,0.67575122,60908.0,60907.0,0.002]
[1723614388356,0.73319622,60908.0,60907.0,0.002]
[1723614388949,1.09399622,60908.0,60907.0,0.002]
[1723614390058,0.98049622,60908.0,60907.0,0.002]
[1723614391356,1.04604981,60908.0,60907.0,0.002]
[1723614392862,0.55348981,60908.0,60907.0,0.002]
[1723614393061,1.04604981,60908.0,60907.0,0.002]
[1723614393564,0.19268981,60908.0,60907.0,0.002]
[1723614393758,0.55348981,60908.0,60907.0,0.002]
[1723614395249,0.19268981,60908.0,60907.0,0.002]
[1723614395456,0.55348981,60908.0,60907.0,0.002]
[1723614395652,0.48793622,60908.0,60907.0,0.002]
[1723614396362,0.12713622,60908.0,60907.0,0.002]
[1723614396559,0.48793622,60908.0,60907.0,0.002]
[1723614397852,0.13525282,60908.0,60907.0,0.002]
[1723614398057,0.06969122,60908.0,60907.0,0.06756921]
[1723614399064,0.06969122,60908.0,60907.0,0.002]
[1723614399358,0.01224622,60908.0,60907.0,0.059446]
[1723614400265,0.01224622,60908.0,60907.0,0.107846]
[1723614404362,0.01224622,60908.0,60907.0,0.18968933]
[1723614404564,0.01224622,60908.0,60907.0,0.31472494]
[1723614405666,0.01224622,60908.0,60907.0,0.107846]
[1723614409765,0.01224622,60908.0,60907.0,0.11762715]
[1723614411965,0.01224622,60908.0,60907.0,0.23112715]
[1723614414264,0.12574622,60908.0,60907.0,0.11762715]
[1723614414770,0.01224622,60908.0,60907.0,0.23112715]
[1723614415069,0.01224622,60908.0,60907.0,0.21865762]
[1723614415373,0.18319122,60908.0,60907.0,0.002]
[1723614415575,0.01224622,60908.0,60907.0,0.002]
[1723614415774,0.01224622,60908.0,60907.0,0.059446]
[1723614415977,0.01224622,60908.0,60907.0,0.26632206]
[1723614417378,0.00224622,60908.0,60907.0,0.18447873]
[1723614418677,0.3608,60916.0,60907.0,0.61959273]
[1723614418977,0.1135,60924.0,60918.0,0.057436]
[1723614419171,0.1235,60924.0,60923.0,0.04917106]
[1723614419371,0.1235,60924.0,60921.0,0.52347106]
[1723614419674,0.067431,60924.0,60922.0,0.04917106]
[1723614419870,0.067431,60924.0,60919.0,0.04917106]
[1723614419871,0.1135,60923.0,60919.0,0.04917106]
[1723614420067,0.1135,60920.0,60919.0,0.04917106]
[1723614420378,0.1135,60920.0,60917.0,0.07533735]
[1723614420580,0.1135,60920.0,60919.0,0.04915439]
[1723614421082,0.1135,60920.0,60919.0,0.001]
[1723614421766,0.1145,60920.0,60919.0,0.001]
[1723614421963,0.058434,60920.0,60919.0,0.001]
[1723614422170,0.154534,60920.0,60919.0,0.001]
[1723614422576,0.155534,60920.0,60919.0,0.003]
[1723614422782,0.114874,60917.0,60916.0,0.00024622]
[1723614422985,0.30215532,60917.0,60906.0,0.04915439]
[1723614423286,0.30215532,60917.0,60905.0,0.04915439]
[1723614423287,0.06551781,60909.0,60905.0,0.04915439]
[1723614423494,0.0469,60908.0,60905.0,0.04915439]
[1723614423689,0.057447,60906.0,60905.0,0.04915439]
[1723614423986,0.057448,60905.0,60904.0,0.04915439]
[1723614424194,0.057456,60897.0,60896.0,0.03113723]
[1723614424500,0.057456,60897.0,60888.0,0.3608]
[1723614424501,1.020896,60897.0,60888.0,0.06640141]
[1723614424787,1.020896,60897.0,60885.0,0.06556141]
[1723614424788,0.2837,60890.0,60885.0,0.06556141]
[1723614425089,0.2837,60890.0,60883.0,0.12314843]
[1723614425391,0.2837,60890.0,60883.0,0.05758702]
[1723614425581,0.1570106,60894.0,60883.0,0.05758702]
[1723614425783,0.057463,60890.0,60889.0,0.001]
[1723614427387,0.057463,60890.0,60889.0,0.002]
[1723614427682,0.058463,60890.0,60889.0,0.003]
[1723614428292,0.001,60890.0,60889.0,0.003]
[1723614428485,0.002,60890.0,60889.0,0.002]
[1723614432495,0.002,60890.0,60889.0,0.059463]
[1723614434495,0.002,60890.0,60889.0,0.420263]
[1723614434699,0.002,60890.0,60889.0,0.059463]
[1723614434888,0.002,60890.0,60889.0,0.420263]
[1723614435896,0.002,60890.0,60889.0,0.3628]
[1723614439489,0.059462,60890.0,60889.0,0.3628]
[1723614439696,0.059462,60890.0,60889.0,0.002]
[1723614439899,0.002,60890.0,60889.0,0.002]
[1723614440399,0.059462,60890.0,60889.0,0.002]
[1723614445407,0.002,60890.0,60889.0,0.002]
[1723614446702,0.002,60890.0,60889.0,0.01198243]
[1723614447013,0.002,60890.0,60889.0,0.002]
[1723614447508,0.002,60890.0,60889.0,0.01178403]
[1723614447702,0.002,60890.0,60889.0,0.002]
[1723614449507,0.002,60890.0,60889.0,0.06756141]
[1723614451413,0.002,60890.0,60889.0,0.002]
[1723614451999,0.059462,60890.0,60889.0,0.002]
[1723614452210,0.107662,60890.0,60889.0,0.002]
[1723614457312,0.600342,60890.0,60889.0,0.002]
[1723614457914,0.66580638,60890.0,60889.0,0.002]
[1723614458311,0.600342,60890.0,60889.0,0.002]
[1723614459316,0.66580638,60890.0,60889.0,0.002]
[1723614459818,0.600342,60890.0,60889.0,0.002]
[1723614460516,0.107662,60890.0,60889.0,0.002]
[1723614462120,0.221162,60890.0,60889.0,0.002]
[1723614466824,0.172962,60890.0,60889.0,0.002]
[1723614467025,0.172962,60890.0,60889.0,0.20902733]
[1723614468121,0.172962,60890.0,60889.0,0.08395177]
[1723614468321,0.172962,60890.0,60889.0,0.20902656]
[1723614468923,0.172962,60890.0,60889.0,0.002]
[1723614469226,0.29588838,60890.0,60889.0,0.002]
[1723614469417,0.843104,60890.0,60889.0,0.06766812]
[1723614469622,0.843104,60890.0,60889.0,0.002]
[1723614470627,0.350424,60890.0,60889.0,0.002]
[1723614472929,0.057464,60888.0,60887.0,0.06566812]
[1723614473123,0.23302687,60888.0,60887.0,0.06566812]
[1723614474522,0.057465,60887.0,60886.0,0.06566812]
[1723614474731,0.170965,60887.0,60886.0,0.06566812]
[1723614476025,0.170965,60887.0,60883.0,0.08206979]
[1723614476026,0.057466,60886.0,60884.0,0.13941977]
[1723614476225,0.057466,60886.0,60884.0,0.18661977]
[1723614476428,0.057466,60886.0,60885.0,0.20703153]
[1723614476627,0.057466,60886.0,60885.0,0.08195177]
[1723614476818,0.057466,60886.0,60885.0,0.2070312]
[1723614477822,0.057466,60886.0,60885.0,0.20703081]
[1723614478027,0.058466,60886.0,60885.0,0.08195177]
[1723614478630,0.058466,60886.0,60885.0,0.44275177]
[1723614478830,0.058466,60886.0,60885.0,0.08195177]
[1723614479042,0.058466,60886.0,60885.0,0.44275177]
[1723614479225,0.059466,60886.0,60885.0,0.44275177]
[1723614480232,0.058466,60886.0,60885.0,0.44275177]
[1723614480531,0.059466,60886.0,60885.0,0.44375177]
[1723614480934,0.060466,60886.0,60885.0,0.44375177]
[1723614483823,0.003,60886.0,60885.0,0.61471877]
[1723614484035,0.003,60886.0,60885.0,0.65784666]
[1723614484235,0.003,60886.0,60885.0,0.54434666]
[1723614487130,0.003,60886.0,60885.0,0.65784666]
[1723614487330,0.003,60886.0,60885.0,1.15056666]
[1723614487832,0.003,60886.0,60885.0,1.15056306]
[1723614489231,0.003,60886.0,60885.0,0.78976306]
[1723614489433,0.003,60886.0,60885.0,1.15056306]
[1723614489743,0.003,60886.0,60885.0,1.24877506]
[1723614490131,0.11374622,60894.0,60892.0,0.05746]
[1723614490332,0.11374622,60894.0,60892.0,0.17096]
[1723614490634,0.11374622,60894.0,60893.0,0.0483]
[1723614490834,0.11374622,60894.0,60893.0,0.10576]
[1723614491833,0.11474622,60894.0,60893.0,0.10576]
[1723614493633,0.11374622,60894.0,60893.0,0.10676]
[1723614493839,0.11474622,60894.0,60893.0,0.05846]
[1723614495531,0.11474622,60894.0,60893.0,0.12407622]
[1723614495737,0.17320522,60894.0,60893.0,0.06661622]
[1723614495932,0.17320522,60894.0,60893.0,0.06861622]
[1723614496135,0.17420522,60894.0,60893.0,0.06861622]
[1723614497438,0.25420522,60894.0,60893.0,0.06861622]
[1723614498537,0.25420522,60894.0,60893.0,0.003]
[1723614498935,0.34510522,60894.0,60893.0,0.003]
[1723614499141,0.40256422,60894.0,60893.0,0.003]
[1723614499649,0.11492,60893.0,60892.0,0.002]
[1723614499945,0.23492,60893.0,60892.0,0.002]
[1723614500146,0.7276,60893.0,60892.0,0.002]
[1723614501447,0.80949727,60893.0,60892.0,0.002]
[1723614502242,0.31681727,60893.0,60892.0,0.002]
[1723614503250,0.057465,60887.0,60886.0,0.06561622]
[1723614503443,0.170965,60887.0,60886.0,0.06561622]
[1723614504047,0.057465,60887.0,60886.0,0.06561622]
[1723614504348,0.057465,60887.0,60883.0,0.55730838]
[1723614504548,0.057465,60887.0,60883.0,0.55646838]
[1723614505050,0.1135,60885.0,60883.0,0.44296838]
[1723614505346,0.1135,60885.0,60884.0,0.057468]
[1723614506742,0.1135,60885.0,60884.0,0.418268]
[1723614506941,0.1135,60885.0,60884.0,0.50031836]
[1723614507944,0.058465,60887.0,60884.0,0.25301836]
[1723614508148,0.001,60885.0,60884.0,0.25301836]
[1723614508343,0.001,60885.0,60884.0,0.61381836]
[1723614508744,0.001,60885.0,60884.0,0.531768]
[1723614509147,0.001,60885.0,60884.0,0.61381836]
[1723614509349,0.171965,60887.0,60884.0,0.61381836]
[1723614509751,0.001,60885.0,60884.0,0.61481836]
[1723614510751,0.171965,60887.0,60884.0,0.25301836]
[1723614510951,0.171965,60887.0,60885.0,0.3608]
[1723614510952,0.170965,60887.0,60885.0,0.3608]
[1723614511657,0.171965,60887.0,60885.0,0.3608]
[1723614511860,0.171965,60887.0,60884.0,0.25401836]
[1723614512156,0.172965,60887.0,60885.0,0.3608]
[1723614512560,0.170965,60887.0,60885.0,0.3608]
[1723614513451,0.172965,60887.0,60885.0,0.3618]
[1723614514350,0.172965,60887.0,60885.0,0.001]
[1723614514554,0.172965,60887.0,60885.0,0.3618]
[1723614517053,0.002,60887.0,60886.0,0.1135]
[1723614517253,0.002,60887.0,60886.0,0.170966]
[1723614517661,0.06550641,60892.0,60891.0,0.057461]
[1723614517849,0.00024622,60894.0,60892.0,0.057461]
[1723614518055,0.00024622,60894.0,60893.0,0.2562]
[1723614518557,0.11374622,60894.0,60893.0,0.1427]
[1723614519355,0.17120522,60894.0,60893.0,0.0476]
[1723614519963,0.057461,60892.0,60891.0,0.3608]
[1723614520155,0.170961,60892.0,60891.0,0.3608]
[1723614523065,0.171961,60892.0,60891.0,0.3618]
[1723614523765,0.172961,60892.0,60891.0,0.3638]
[1723614525168,0.172961,60892.0,60891.0,0.003]
[1723614528267,0.172961,60892.0,60891.0,0.06861808]
[1723614529369,0.23846741,60892.0,60891.0,0.003]
[1723614531057,0.172961,60892.0,60891.0,0.003]
[1723614531462,0.23846741,60892.0,60891.0,0.003]
[1723614532872,0.292961,60892.0,60891.0,0.003]
[1723614537370,0.350422,60892.0,60891.0,0.003]
[1723614537875,0.43231927,60892.0,60891.0,0.003]
[1723614538180,0.350422,60892.0,60891.0,0.003]
[1723614539186,0.711222,60892.0,60891.0,0.003]
[1723614539890,0.711222,60892.0,60891.0,0.00099999]
[1723614541082,0.79311927,60892.0,60891.0,0.00099999]
[1723614542087,0.43231927,60892.0,60891.0,0.00099999]
[1723614542292,0.711222,60892.0,60891.0,0.00099999]
[1723614544595,0.653761,60892.0,60891.0,0.00099999]
[1723614545796,0.79311927,60892.0,60891.0,0.00099999]
[1723614545987,0.80743437,60892.0,60891.0,0.00099999]
[1723614546181,0.86266649,60892.0,60891.0,0.00099999]
[1723614546487,0.78082069,60892.0,60891.0,0.00099999]
[1723614547389,0.78082069,60892.0,60883.0,0.0657361]
[1723614547390,1.68331,60892.0,60884.0,0.04920649]
[1723614547594,1.68331,60892.0,60883.0,0.00011802]
[1723614547595,0.3608,60885.0,60883.0,0.00011802]
[1723614547897,0.29416442,60884.0,60883.0,0.00011802]
[1723614548084,0.40416442,60884.0,60883.0,0.00011802]
[1723614548399,1.48367929,60884.0,60883.0,0.00011802]
[1723614548698,1.53187929,60884.0,60883.0,0.00011802]
[1723614549094,1.53188039,60884.0,60883.0,0.00011802]
[1723614549987,1.46228345,60884.0,60883.0,0.00011802]
[1723614550191,1.436664,60884.0,60883.0,0.00011802]
[1723614551298,1.51939821,60884.0,60883.0,0.00011802]
[1723614551491,0.57843821,60884.0,60883.0,0.00011802]
[1723614552299,0.496704,60884.0,60883.0,0.00011802]
[1723614552799,0.439236,60884.0,60883.0,0.00011802]
[1723614552991,0.340436,60884.0,60883.0,0.00011802]
[1723614555188,0.282968,60884.0,60883.0,0.00011802]
[1723614557804,0.2930229,60884.0,60883.0,0.00011802]
[1723614559304,0.35839329,60884.0,60883.0,0.00011802]
[1723614559706,0.71919329,60884.0,60883.0,0.00011802]
[1723614560599,0.6538229,60884.0,60883.0,0.00011802]
[1723614560999,0.2930229,60884.0,60883.0,0.00011802]
[1723614561201,0.6538229,60884.0,60883.0,0.00011802]
[1723614564110,0.71921621,60884.0,60883.0,0.00011802]
[1723614564612,0.6538229,60884.0,60883.0,0.00011802]
[1723614566406,0.71921621,60884.0,60883.0,0.00011802]
[1723614566696,0.6538229,60884.0,60883.0,0.00011802]
[1723614566902,0.643768,60884.0,60883.0,0.00011802]
[1723614573905,0.643768,60884.0,60883.0,0.04931438]
[1723614575313,0.282968,60884.0,60883.0,0.04931438]
[1723614576111,0.282968,60884.0,60883.0,0.00011802]
[1723614580118,0.169468,60884.0,60883.0,0.00011802]
[1723614580324,0.169468,60884.0,60883.0,0.04931438]
[1723614580512,0.282968,60884.0,60883.0,0.04931438]
[1723614582218,0.34836131,60884.0,60883.0,0.04931438]
[1723614582916,0.23486131,60884.0,60883.0,0.04931438]
[1723614583214,0.112,60884.0,60883.0,0.12318217]
[1723614583416,0.112,60884.0,60883.0,0.95034702]
[1723614583608,0.002,60884.0,60883.0,1.03234096]
[1723614583813,0.002,60884.0,60883.0,1.07543632]
[1723614584514,0.002,60884.0,60883.0,0.18267632]
[1723614585021,0.002,60884.0,60883.0,0.19280563]
[1723614586117,0.002,60884.0,60883.0,0.27479924]
[1723614586912,0.002,60884.0,60883.0,0.68556563]
[1723614587118,0.002,60884.0,60883.0,0.56047633]